[Event "Titled Tuesday Blitz November 22 Late 2022"]
[White "Ivic, Velimir"]
[Black "Caruana, Fabiano"]
[WhiteFideId "950122"]
[BlackFideId "2020009"]
[WhiteElo "2625"]
[BlackElo "2847"]
[Result "0-1"]
[Round "07"]
[TimeControl "180+1"]
[Date "2022.11.22"]
[WhiteClock "0:00:01"]
[BlackClock "0:00:28"]

1. d4 {[%clk 0:03:00]}  Nf6 {[%clk 0:02:59]} 2. c4 {[%clk 0:03:01]}  d6 {[%clk 0:02:59]} 3. Nc3 {[%clk 0:03:01]}  g6 {[%clk 0:02:58]} 4. e4 {[%clk 0:03:01]}  Bg7 {[%clk 0:02:59]} 5. Be2 {[%clk 0:02:59]}  Nbd7 {[%clk 0:02:56]} 6. Be3 {[%clk 0:02:58]}  e5 {[%clk 0:02:55]} 7. d5 {[%clk 0:02:58]}  a5 {[%clk 0:02:56]} 8. h4 {[%clk 0:02:50]}  Nc5 {[%clk 0:02:56]} 9. Qc2 {[%clk 0:02:49]}  Ng4 {[%clk 0:02:48]} 10. Bd2 {[%clk 0:02:44]}  f5 {[%clk 0:02:45]} 11. Bxg4 {[%clk 0:02:35]}  fxg4 {[%clk 0:02:46]} 12. h5 {[%clk 0:02:35]}  Bd7 {[%clk 0:02:43]} 13. Nge2 {[%clk 0:02:32]}  Qf6 {[%clk 0:02:36]} 14. Be3 {[%clk 0:02:27]}  b6 {[%clk 0:02:27]} 15. O-O-O {[%clk 0:02:25]}  h6 {[%clk 0:02:19]} 16. Ng3 {[%clk 0:02:05]}  g5 {[%clk 0:02:14]} 17. Rdf1 {[%clk 0:01:47]}  O-O {[%clk 0:02:12]} 18. f3 {[%clk 0:01:47]}  Qe7 {[%clk 0:02:01]} 19. Nf5 {[%clk 0:01:31]}  Bxf5 {[%clk 0:02:00]} 20. exf5 {[%clk 0:01:31]}  gxf3 {[%clk 0:01:41]} 21. Bxc5 {[%clk 0:00:59]}  fxg2 {[%clk 0:01:40]} 22. Qxg2 {[%clk 0:00:57]}  bxc5 {[%clk 0:01:40]} 23. Ne4 {[%clk 0:00:56]}  Rab8 {[%clk 0:01:33]} 24. Qc2 {[%clk 0:00:54]}  Bf6 {[%clk 0:01:30]} 25. Rh3 {[%clk 0:00:49]}  Kg7 {[%clk 0:01:28]} 26. Rb3 {[%clk 0:00:48]}  Qf7 {[%clk 0:01:23]} 27. Qe2 {[%clk 0:00:46]}  Rxb3 {[%clk 0:01:21]} 28. axb3 {[%clk 0:00:47]}  Qd7 {[%clk 0:01:13]} 29. Kc2 {[%clk 0:00:27]}  a4 {[%clk 0:01:12]} 30. Ra1 {[%clk 0:00:15]}  axb3+ {[%clk 0:01:11]} 31. Kxb3 {[%clk 0:00:16]}  Qxf5 {[%clk 0:01:01]} 32. Rf1 {[%clk 0:00:15]}  Qh3+ {[%clk 0:01:00]} 33. Kc2 {[%clk 0:00:13]}  Be7 {[%clk 0:00:52]} 34. Rxf8 {[%clk 0:00:12]}  Bxf8 {[%clk 0:00:46]} 35. Qf2 {[%clk 0:00:13]}  Be7 {[%clk 0:00:45]} 36. Ng3 {[%clk 0:00:13]}  Kg8 {[%clk 0:00:39]} 37. Nf5 {[%clk 0:00:12]}  Bf8 {[%clk 0:00:39]} 38. Ng3 {[%clk 0:00:11]}  Qg4 {[%clk 0:00:38]} 39. Qf6 {[%clk 0:00:06]}  Qxg3 {[%clk 0:00:29]} 40. Qg6+ {[%clk 0:00:01]}  Kh8 {[%clk 0:00:29]} 41. Qf7 {[%clk 0:00:01]}  Qf4 {[%clk 0:00:28]} 0-1


[Site "https://www.chess.com"]

[Event "Titled Tuesday Blitz November 22 Late 2022"]
[White "Janaszak, Dawid"]
[Black "Zhu, Jiner"]
[WhiteFideId "1119206"]
[BlackFideId "8608059"]
[WhiteElo "2226"]
[BlackElo "2384"]
[Result "0-1"]
[Round "07"]
[TimeControl "180+1"]
[Date "2022.11.23"]
[WhiteClock "0:00:14"]
[BlackClock "0:00:16"]

1. e4 {[%clk 0:03:00]}  e5 {[%clk 0:02:58]} 2. Nf3 {[%clk 0:03:00]}  Nc6 {[%clk 0:02:59]} 3. d4 {[%clk 0:03:00]}  exd4 {[%clk 0:02:58]} 4. Nxd4 {[%clk 0:03:01]}  Nf6 {[%clk 0:02:58]} 5. Nxc6 {[%clk 0:03:01]}  bxc6 {[%clk 0:02:58]} 6. e5 {[%clk 0:03:02]}  Qe7 {[%clk 0:02:58]} 7. Qe2 {[%clk 0:03:02]}  Nd5 {[%clk 0:02:58]} 8. h4 {[%clk 0:03:03]}  d6 {[%clk 0:02:46]} 9. c4 {[%clk 0:03:00]}  Ba6 {[%clk 0:02:43]} 10. Bg5 {[%clk 0:02:59]}  f6 {[%clk 0:02:34]} 11. exf6 {[%clk 0:02:59]}  Nxf6 {[%clk 0:02:30]} 12. Nd2 {[%clk 0:02:50]}  O-O-O {[%clk 0:02:26]} 13. O-O-O {[%clk 0:02:45]}  h6 {[%clk 0:02:19]} 14. Be3 {[%clk 0:02:43]}  Kb8 {[%clk 0:02:16]} 15. Qd3 {[%clk 0:02:38]}  d5 {[%clk 0:02:15]} 16. Qb3+ {[%clk 0:02:25]}  Qb4 {[%clk 0:02:10]} 17. c5 {[%clk 0:02:13]}  Qxb3 {[%clk 0:02:08]} 18. Nxb3 {[%clk 0:02:13]}  Bc8 {[%clk 0:01:47]} 19. Bd4 {[%clk 0:01:57]}  Be7 {[%clk 0:01:41]} 20. Re1 {[%clk 0:01:55]}  Rhe8 {[%clk 0:01:40]} 21. Bd3 {[%clk 0:01:54]}  Bf8 {[%clk 0:01:38]} 22. Bg6 {[%clk 0:01:50]}  Rxe1+ {[%clk 0:01:36]} 23. Rxe1 {[%clk 0:01:51]}  Bd7 {[%clk 0:01:34]} 24. f3 {[%clk 0:01:45]}  Kc8 {[%clk 0:01:29]} 25. Kd2 {[%clk 0:01:36]}  Ng8 {[%clk 0:01:27]} 26. g4 {[%clk 0:01:25]}  Ne7 {[%clk 0:01:24]} 27. Bf7 {[%clk 0:01:20]}  Be8 {[%clk 0:01:09]} 28. Be6+ {[%clk 0:01:11]}  Bd7 {[%clk 0:01:08]} 29. Bf7 {[%clk 0:00:53]}  Be8 {[%clk 0:01:08]} 30. Bxe8 {[%clk 0:00:41]}  Rxe8 {[%clk 0:01:08]} 31. Bc3 {[%clk 0:00:33]}  Kd7 {[%clk 0:01:06]} 32. Nd4 {[%clk 0:00:33]}  Ng6 {[%clk 0:00:46]} 33. Rxe8 {[%clk 0:00:30]}  Kxe8 {[%clk 0:00:47]} 34. h5 {[%clk 0:00:25]}  Ne5 {[%clk 0:00:40]} 35. b4 {[%clk 0:00:24]}  Kd7 {[%clk 0:00:36]} 36. Ke2 {[%clk 0:00:23]}  Be7 {[%clk 0:00:29]} 37. Nf5 {[%clk 0:00:20]}  Bf6 {[%clk 0:00:29]} 38. Bd4 {[%clk 0:00:20]}  Ke6 {[%clk 0:00:28]} 39. a3 {[%clk 0:00:18]}  Nc4 {[%clk 0:00:20]} 40. a4 {[%clk 0:00:17]}  Ne5 {[%clk 0:00:17]} 41. Kd2 {[%clk 0:00:13]}  Nxf3+ {[%clk 0:00:16]} 42. Kd3 {[%clk 0:00:12]}  Nxd4 {[%clk 0:00:16]} 43. Nxd4+ {[%clk 0:00:13]}  Bxd4 {[%clk 0:00:17]} 44. Kxd4 {[%clk 0:00:14]}  a6 {[%clk 0:00:17]} 45. Kd3 {[%clk 0:00:13]}  Ke5 {[%clk 0:00:17]} 46. Ke3 {[%clk 0:00:14]}  d4+ {[%clk 0:00:17]} 47. Kd2 {[%clk 0:00:15]}  Ke4 {[%clk 0:00:17]} 48. b5 {[%clk 0:00:14]}  cxb5 {[%clk 0:00:16]} 0-1


[Site "https://www.chess.com"]

[Event "Titled Tuesday Blitz November 22 Late 2022"]
[White "Javakhadze, Zurab"]
[Black "Rustemov, Alexander"]
[WhiteFideId "13603647"]
[BlackFideId "4119002"]
[WhiteElo "2381"]
[BlackElo "2880"]
[Result "1/2-1/2"]
[Round "07"]
[TimeControl "180+1"]
[Date "2022.11.22"]
[WhiteClock "0:00:07"]
[BlackClock "0:00:04"]

1. Nf3 {[%clk 0:03:00]}  d5 {[%clk 0:02:57]} 2. g3 {[%clk 0:03:01]}  Nf6 {[%clk 0:02:56]} 3. Bg2 {[%clk 0:03:01]}  Bf5 {[%clk 0:02:56]} 4. O-O {[%clk 0:03:01]}  e6 {[%clk 0:02:57]} 5. d3 {[%clk 0:03:02]}  h6 {[%clk 0:02:57]} 6. c4 {[%clk 0:02:57]}  c6 {[%clk 0:02:56]} 7. Be3 {[%clk 0:02:56]}  dxc4 {[%clk 0:02:50]} 8. dxc4 {[%clk 0:02:56]}  Qxd1 {[%clk 0:02:49]} 9. Rxd1 {[%clk 0:02:57]}  Nbd7 {[%clk 0:02:48]} 10. Nc3 {[%clk 0:02:56]}  Bc5 {[%clk 0:02:46]} 11. Bxc5 {[%clk 0:02:49]}  Nxc5 {[%clk 0:02:46]} 12. Nd4 {[%clk 0:02:49]}  O-O {[%clk 0:02:33]} 13. Nxf5 {[%clk 0:02:40]}  exf5 {[%clk 0:02:33]} 14. b4 {[%clk 0:02:39]}  Nce4 {[%clk 0:02:27]} 15. Nxe4 {[%clk 0:02:34]}  fxe4 {[%clk 0:02:27]} 16. Rd4 {[%clk 0:02:34]}  Rfe8 {[%clk 0:02:26]} 17. Rad1 {[%clk 0:02:32]}  h5 {[%clk 0:02:17]} 18. h3 {[%clk 0:02:28]}  g6 {[%clk 0:02:16]} 19. e3 {[%clk 0:02:13]}  Kf8 {[%clk 0:02:11]} 20. Kf1 {[%clk 0:02:13]}  a5 {[%clk 0:02:10]} 21. b5 {[%clk 0:02:10]}  cxb5 {[%clk 0:02:09]} 22. cxb5 {[%clk 0:02:11]}  Rac8 {[%clk 0:02:09]} 23. Rd6 {[%clk 0:01:49]}  Re6 {[%clk 0:02:09]} 24. Rxe6 {[%clk 0:01:39]}  fxe6 {[%clk 0:02:10]} 25. Ke1 {[%clk 0:01:34]}  Ke7 {[%clk 0:02:09]} 26. Kd2 {[%clk 0:01:29]}  Rc5 {[%clk 0:02:07]} 27. a4 {[%clk 0:01:27]}  Rc4 {[%clk 0:02:07]} 28. Rc1 {[%clk 0:01:22]}  Rxa4 {[%clk 0:02:03]} 29. Rc7+ {[%clk 0:01:22]}  Kd6 {[%clk 0:02:03]} 30. Rxb7 {[%clk 0:01:18]}  Ra2+ {[%clk 0:02:03]} 31. Ke1 {[%clk 0:01:14]}  a4 {[%clk 0:02:01]} 32. Bf1 {[%clk 0:01:01]}  Kc5 {[%clk 0:01:49]} 33. Rc7+ {[%clk 0:00:58]}  Kb6 {[%clk 0:01:45]} 34. Rc6+ {[%clk 0:00:58]}  Kb7 {[%clk 0:01:45]} 35. Bc4 {[%clk 0:00:57]}  Rc2 {[%clk 0:01:32]} 36. Kd1 {[%clk 0:00:57]}  Rxf2 {[%clk 0:01:31]} 37. Rxe6 {[%clk 0:00:54]}  a3 {[%clk 0:01:31]} 38. Ra6 {[%clk 0:00:53]}  Rf3 {[%clk 0:01:22]} 39. Ke2 {[%clk 0:00:52]}  g5 {[%clk 0:01:15]} 40. Bb3 {[%clk 0:00:39]}  h4 {[%clk 0:01:10]} 41. gxh4 {[%clk 0:00:37]}  gxh4 {[%clk 0:01:11]} 42. Be6 {[%clk 0:00:34]}  Rg3 {[%clk 0:01:01]} 43. Rxa3 {[%clk 0:00:29]}  Rg2+ {[%clk 0:01:01]} 44. Kf1 {[%clk 0:00:25]}  Rb2 {[%clk 0:00:54]} 45. Bc4 {[%clk 0:00:25]}  Nh5 {[%clk 0:00:49]} 46. Ra6 {[%clk 0:00:22]}  Ng3+ {[%clk 0:00:48]} 47. Ke1 {[%clk 0:00:22]}  Nf5 {[%clk 0:00:34]} 48. Bd5+ {[%clk 0:00:21]}  Kc7 {[%clk 0:00:34]} 49. Rc6+ {[%clk 0:00:21]}  Kd8 {[%clk 0:00:32]} 50. b6 {[%clk 0:00:17]}  Nxe3 {[%clk 0:00:29]} 51. Bxe4 {[%clk 0:00:18]}  Rb4 {[%clk 0:00:26]} 52. Bf3 {[%clk 0:00:08]}  Nc4 {[%clk 0:00:24]} 53. b7 {[%clk 0:00:07]}  Ne5 {[%clk 0:00:14]} 54. Rc8+ {[%clk 0:00:06]}  Kd7 {[%clk 0:00:14]} 55. Bd5 {[%clk 0:00:02]}  Kd6 {[%clk 0:00:11]} 56. Rd8+ {[%clk 0:00:02]}  Kc5 {[%clk 0:00:10]} 57. b8=Q {[%clk 0:00:01]}  Rxb8 {[%clk 0:00:10]} 58. Rxb8 {[%clk 0:00:02]}  Kxd5 {[%clk 0:00:11]} 59. Rh8 {[%clk 0:00:02]}  Ke4 {[%clk 0:00:09]} 60. Rxh4+ {[%clk 0:00:02]}  Kf3 {[%clk 0:00:09]} 61. Rh5 {[%clk 0:00:02]}  Nd3+ {[%clk 0:00:05]} 62. Kf1 {[%clk 0:00:02]}  Kg3 {[%clk 0:00:05]} 63. Rd5 {[%clk 0:00:01]}  Nf4 {[%clk 0:00:06]} 64. Rd4 {[%clk 0:00:01]}  Nxh3 {[%clk 0:00:05]} 65. Rd3+ {[%clk 0:00:02]}  Kg4 {[%clk 0:00:05]} 66. Ra3 {[%clk 0:00:03]}  Nf4 {[%clk 0:00:02]} 67. Ra4 {[%clk 0:00:03]}  Kf5 {[%clk 0:00:02]} 68. Kf2 {[%clk 0:00:04]}  Ne6 {[%clk 0:00:02]} 69. Kf3 {[%clk 0:00:05]}  Ke5 {[%clk 0:00:03]} 70. Ra5+ {[%clk 0:00:06]}  Kd4 {[%clk 0:00:03]} 71. Ra6 {[%clk 0:00:06]}  Nc5 {[%clk 0:00:04]} 72. Kf4 {[%clk 0:00:07]}  Nxa6 {[%clk 0:00:04]} 1/2-1/2


[Site "https://www.chess.com"]

[Event "Titled Tuesday Blitz November 22 Late 2022"]
[White "Khandelwal, Ankush"]
[Black "Bobadilla Viera, Jorge Samuel"]
[WhiteFideId "413470"]
[BlackFideId "3906353"]
[WhiteElo "2271"]
[BlackElo "2212"]
[Result "1-0"]
[Round "07"]
[TimeControl "180+1"]
[Date "2022.11.23"]
[WhiteClock "0:01:12"]
[BlackClock "0:02:28"]

1. e4 {[%clk 0:03:00]}  c5 {[%clk 0:02:57]} 2. Nf3 {[%clk 0:03:00]}  d6 {[%clk 0:02:57]} 3. d4 {[%clk 0:03:00]}  cxd4 {[%clk 0:02:58]} 4. Nxd4 {[%clk 0:03:01]}  Nf6 {[%clk 0:02:58]} 5. Nc3 {[%clk 0:03:00]}  a6 {[%clk 0:02:58]} 6. f3 {[%clk 0:02:59]}  e5 {[%clk 0:02:57]} 7. Nb3 {[%clk 0:02:59]}  Be6 {[%clk 0:02:56]} 8. Be3 {[%clk 0:02:59]}  Be7 {[%clk 0:02:55]} 9. Qd2 {[%clk 0:02:59]}  O-O {[%clk 0:02:56]} 10. O-O-O {[%clk 0:02:36]}  a5 {[%clk 0:02:56]} 11. a4 {[%clk 0:02:30]}  Nc6 {[%clk 0:02:55]} 12. g4 {[%clk 0:02:27]}  Nb4 {[%clk 0:02:55]} 13. Kb1 {[%clk 0:02:20]}  d5 {[%clk 0:02:51]} 14. g5 {[%clk 0:02:06]}  Ne8 {[%clk 0:02:50]} 15. Nxd5 {[%clk 0:01:53]}  Nxd5 {[%clk 0:02:42]} 16. exd5 {[%clk 0:01:54]}  Bd7 {[%clk 0:02:42]} 17. d6 {[%clk 0:01:17]}  Bxd6 {[%clk 0:02:38]} 18. Bc5 {[%clk 0:01:17]}  Bxc5 {[%clk 0:02:36]} 19. Nxc5 {[%clk 0:01:18]}  Qc7 {[%clk 0:02:28]} 20. Nxd7 {[%clk 0:01:17]}  Rd8 {[%clk 0:02:28]} 21. Bb5 {[%clk 0:01:12]} 1-0


[Site "https://www.chess.com"]

[Event "Titled Tuesday Blitz November 22 Late 2022"]
[White "Klenburg, Michael"]
[Black "Arngrimsson, Dagur"]
[WhiteFideId "14102072"]
[BlackFideId "2301288"]
[WhiteElo "2405"]
[BlackElo "2286"]
[Result "1-0"]
[Round "07"]
[TimeControl "180+1"]
[Date "2022.11.23"]
[WhiteClock "0:00:16"]
[BlackClock "0:00:18"]

1. g3 {[%clk 0:03:00]}  d5 {[%clk 0:02:59]} 2. Bg2 {[%clk 0:03:00]}  Nf6 {[%clk 0:03:00]} 3. d3 {[%clk 0:02:59]}  e5 {[%clk 0:03:00]} 4. Nf3 {[%clk 0:02:59]}  Nbd7 {[%clk 0:02:59]} 5. O-O {[%clk 0:02:58]}  Bd6 {[%clk 0:02:58]} 6. c4 {[%clk 0:02:58]}  c6 {[%clk 0:02:58]} 7. cxd5 {[%clk 0:02:56]}  cxd5 {[%clk 0:02:59]} 8. Nc3 {[%clk 0:02:56]}  O-O {[%clk 0:02:59]} 9. a3 {[%clk 0:02:52]}  a5 {[%clk 0:02:55]} 10. Nb5 {[%clk 0:02:51]}  Bb8 {[%clk 0:02:54]} 11. d4 {[%clk 0:02:42]}  e4 {[%clk 0:02:54]} 12. Ne1 {[%clk 0:02:42]}  b6 {[%clk 0:02:53]} 13. Nc2 {[%clk 0:02:38]}  Ba6 {[%clk 0:02:53]} 14. a4 {[%clk 0:02:38]}  Bxb5 {[%clk 0:02:52]} 15. axb5 {[%clk 0:02:37]}  Re8 {[%clk 0:02:52]} 16. Ne3 {[%clk 0:02:34]}  Nf8 {[%clk 0:02:51]} 17. b4 {[%clk 0:02:27]}  Bc7 {[%clk 0:02:43]} 18. bxa5 {[%clk 0:02:26]}  bxa5 {[%clk 0:02:41]} 19. Qa4 {[%clk 0:02:23]}  Ne6 {[%clk 0:02:40]} 20. Bb2 {[%clk 0:02:23]}  Bb6 {[%clk 0:02:39]} 21. Rac1 {[%clk 0:02:20]}  Qd6 {[%clk 0:02:36]} 22. Ba3 {[%clk 0:02:14]}  Qd8 {[%clk 0:02:34]} 23. Rfd1 {[%clk 0:02:08]}  Rc8 {[%clk 0:02:32]} 24. Rc6 {[%clk 0:02:01]}  Rxc6 {[%clk 0:02:05]} 25. bxc6 {[%clk 0:02:00]}  Qc7 {[%clk 0:02:05]} 26. Nf5 {[%clk 0:01:27]}  g6 {[%clk 0:01:51]} 27. Bd6 {[%clk 0:01:25]}  Qa7 {[%clk 0:01:46]} 28. Be5 {[%clk 0:01:24]}  gxf5 {[%clk 0:01:27]} 29. Bxf6 {[%clk 0:01:22]}  Bd8 {[%clk 0:01:04]} 30. Be5 {[%clk 0:01:08]}  Bc7 {[%clk 0:00:59]} 31. e3 {[%clk 0:01:03]}  Rb8 {[%clk 0:00:54]} 32. Rc1 {[%clk 0:00:48]}  Rc8 {[%clk 0:00:48]} 33. Bh3 {[%clk 0:00:37]}  Bxe5 {[%clk 0:00:47]} 34. dxe5 {[%clk 0:00:36]}  d4 {[%clk 0:00:47]} 35. Bxf5 {[%clk 0:00:25]}  dxe3 {[%clk 0:00:47]} 36. Qxe4 {[%clk 0:00:24]}  exf2+ {[%clk 0:00:44]} 37. Kg2 {[%clk 0:00:23]}  Rd8 {[%clk 0:00:37]} 38. Qg4+ {[%clk 0:00:19]}  Kf8 {[%clk 0:00:20]} 39. Bxe6 {[%clk 0:00:19]}  fxe6 {[%clk 0:00:17]} 40. c7 {[%clk 0:00:19]}  f1=Q+ {[%clk 0:00:16]} 41. Rxf1+ {[%clk 0:00:18]}  Ke8 {[%clk 0:00:16]} 42. cxd8=Q+ {[%clk 0:00:18]}  Kxd8 {[%clk 0:00:16]} 43. Qg8+ {[%clk 0:00:18]}  Kc7 {[%clk 0:00:16]} 44. Rf7+ {[%clk 0:00:16]}  Kb6 {[%clk 0:00:17]} 45. Rxa7 {[%clk 0:00:16]}  Kxa7 {[%clk 0:00:18]} 46. Qxe6 {[%clk 0:00:16]} 1-0


[Site "https://www.chess.com"]

[Event "Titled Tuesday Blitz November 22 Late 2022"]
[White "Kopylov, Alexander A."]
[Black "Trent, Lawrence"]
[WhiteFideId "4164857"]
[BlackFideId "408638"]
[WhiteElo "2436"]
[BlackElo "2458"]
[Result "1-0"]
[Round "07"]
[TimeControl "180+1"]
[Date "2022.11.23"]
[WhiteClock "0:02:13"]
[BlackClock "0:02:51"]

1. e4 {[%clk 0:02:55]}  e5 {[%clk 0:02:58]} 2. Nf3 {[%clk 0:02:55]}  Nc6 {[%clk 0:02:58]} 3. Nc3 {[%clk 0:02:55]}  Nf6 {[%clk 0:02:59]} 4. h3 {[%clk 0:02:56]}  Bc5 {[%clk 0:02:58]} 5. Nxe5 {[%clk 0:02:55]}  Nxe5 {[%clk 0:02:58]} 6. d4 {[%clk 0:02:56]}  Bd6 {[%clk 0:02:59]} 7. dxe5 {[%clk 0:02:56]}  Bxe5 {[%clk 0:02:59]} 8. Bd3 {[%clk 0:02:57]}  O-O {[%clk 0:03:00]} 9. O-O {[%clk 0:02:57]}  Re8 {[%clk 0:03:00]} 10. Ne2 {[%clk 0:02:55]}  c6 {[%clk 0:02:59]} 11. f4 {[%clk 0:02:52]}  Bc7 {[%clk 0:02:59]} 12. e5 {[%clk 0:02:47]}  Nd5 {[%clk 0:02:59]} 13. c4 {[%clk 0:02:43]}  Bb6+ {[%clk 0:02:58]} 14. Kh2 {[%clk 0:02:39]}  Ne3 {[%clk 0:02:58]} 15. Bxe3 {[%clk 0:02:38]}  Bxe3 {[%clk 0:02:59]} 16. Bxh7+ {[%clk 0:02:39]}  Kh8 {[%clk 0:02:57]} 17. Bc2 {[%clk 0:02:34]}  Bc5 {[%clk 0:02:55]} 18. Ng3 {[%clk 0:02:19]}  Qh4 {[%clk 0:02:51]} 19. Nf5 {[%clk 0:02:13]}  Qd8 {[%clk 0:02:51]} 1-0


[Site "https://www.chess.com"]

[Event "Titled Tuesday Blitz November 22 Late 2022"]
[White "Kovacevic, Radmila"]
[Black "Filgueira, Hernan"]
[WhiteFideId "933171"]
[BlackFideId "101770"]
[WhiteElo "2208"]
[BlackElo "2363"]
[Result "0-1"]
[Round "07"]
[TimeControl "180+1"]
[Date "2022.11.23"]
[WhiteClock "0:01:04"]
[BlackClock "0:01:44"]

1. e4 {[%clk 0:03:00]}  d5 {[%clk 0:02:58]} 2. exd5 {[%clk 0:03:00]}  Qxd5 {[%clk 0:02:59]} 3. Nf3 {[%clk 0:03:00]}  Bg4 {[%clk 0:02:57]} 4. Be2 {[%clk 0:03:01]}  Bxf3 {[%clk 0:02:57]} 5. Bxf3 {[%clk 0:03:01]}  Qe6+ {[%clk 0:02:57]} 6. Be2 {[%clk 0:03:01]}  Nc6 {[%clk 0:02:55]} 7. O-O {[%clk 0:03:01]}  Nf6 {[%clk 0:02:54]} 8. c3 {[%clk 0:03:00]}  Qd6 {[%clk 0:02:53]} 9. b4 {[%clk 0:02:59]}  a6 {[%clk 0:02:53]} 10. h3 {[%clk 0:02:58]}  e5 {[%clk 0:02:52]} 11. f4 {[%clk 0:02:55]}  e4 {[%clk 0:02:49]} 12. d4 {[%clk 0:02:43]}  exd3 {[%clk 0:02:48]} 13. Bxd3 {[%clk 0:02:43]}  O-O-O {[%clk 0:02:46]} 14. Bf5+ {[%clk 0:02:40]}  Kb8 {[%clk 0:02:46]} 15. Qa4 {[%clk 0:02:37]}  Be7 {[%clk 0:02:21]} 16. Na3 {[%clk 0:02:21]}  Nd5 {[%clk 0:02:11]} 17. Rf3 {[%clk 0:01:53]}  Qf6 {[%clk 0:02:09]} 18. Be4 {[%clk 0:01:12]}  Nxc3 {[%clk 0:02:07]} 19. Qc2 {[%clk 0:01:05]}  Nxe4 {[%clk 0:01:59]} 20. Bb2 {[%clk 0:01:04]}  Nd4 {[%clk 0:01:44]} 0-1


[Site "https://www.chess.com"]

[Event "Titled Tuesday Blitz November 22 Late 2022"]
[White "Lopez Gracia, Fernando"]
[Black "Rodriguez Santiago, Jaime"]
[WhiteFideId "2207184"]
[BlackFideId "3100898"]
[WhiteElo "2439"]
[BlackElo "2025"]
[Result "1-0"]
[Round "07"]
[TimeControl "180+1"]
[Date "2022.11.23"]
[WhiteClock "0:00:20"]
[BlackClock "0:00:12"]

1. c4 {[%clk 0:03:00]}  e5 {[%clk 0:02:54]} 2. Nc3 {[%clk 0:02:57]}  Nf6 {[%clk 0:02:53]} 3. g3 {[%clk 0:02:57]}  Nc6 {[%clk 0:02:52]} 4. Bg2 {[%clk 0:02:57]}  Bb4 {[%clk 0:02:51]} 5. Nf3 {[%clk 0:02:53]}  Bxc3 {[%clk 0:02:50]} 6. dxc3 {[%clk 0:02:53]}  O-O {[%clk 0:02:50]} 7. O-O {[%clk 0:02:53]}  d6 {[%clk 0:02:49]} 8. Qc2 {[%clk 0:02:47]}  Re8 {[%clk 0:02:49]} 9. Nd2 {[%clk 0:02:45]}  a5 {[%clk 0:02:47]} 10. b3 {[%clk 0:02:44]}  a4 {[%clk 0:02:46]} 11. Ba3 {[%clk 0:02:41]}  g6 {[%clk 0:02:13]} 12. Rfd1 {[%clk 0:02:40]}  Bd7 {[%clk 0:02:09]} 13. Ne4 {[%clk 0:02:34]}  Nxe4 {[%clk 0:02:05]} 14. Bxe4 {[%clk 0:02:35]}  f5 {[%clk 0:02:03]} 15. Bd5+ {[%clk 0:02:36]}  Kh8 {[%clk 0:02:03]} 16. c5 {[%clk 0:02:36]}  dxc5 {[%clk 0:01:57]} 17. Bxc5 {[%clk 0:02:37]}  Qf6 {[%clk 0:01:54]} 18. Bf3 {[%clk 0:02:14]}  axb3 {[%clk 0:01:47]} 19. axb3 {[%clk 0:02:14]}  Rxa1 {[%clk 0:01:46]} 20. Rxa1 {[%clk 0:02:15]}  e4 {[%clk 0:01:43]} 21. Bg2 {[%clk 0:02:15]}  b6 {[%clk 0:01:43]} 22. Be3 {[%clk 0:02:14]}  Kg8 {[%clk 0:01:35]} 23. Rd1 {[%clk 0:02:12]}  Be6 {[%clk 0:01:35]} 24. f3 {[%clk 0:02:11]}  Qf7 {[%clk 0:01:33]} 25. c4 {[%clk 0:02:10]}  exf3 {[%clk 0:01:19]} 26. Bxf3 {[%clk 0:02:08]}  Ne5 {[%clk 0:01:18]} 27. Bg2 {[%clk 0:02:06]}  Ng4 {[%clk 0:01:17]} 28. Bf4 {[%clk 0:02:02]}  Qe7 {[%clk 0:01:06]} 29. Qd3 {[%clk 0:01:53]}  Qc5+ {[%clk 0:01:01]} 30. Qd4 {[%clk 0:01:53]}  Qe7 {[%clk 0:00:48]} 31. h3 {[%clk 0:01:51]}  c5 {[%clk 0:00:43]} 32. Qc3 {[%clk 0:01:47]}  g5 {[%clk 0:00:39]} 33. Bd6 {[%clk 0:01:45]}  Qf6 {[%clk 0:00:35]} 34. Qf3 {[%clk 0:01:22]}  Ne5 {[%clk 0:00:29]} 35. Qb7 {[%clk 0:01:22]}  Nf7 {[%clk 0:00:28]} 36. Bc7 {[%clk 0:01:14]}  f4 {[%clk 0:00:25]} 37. Qxb6 {[%clk 0:01:03]}  fxg3 {[%clk 0:00:23]} 38. Rf1 {[%clk 0:01:04]}  Qd4+ {[%clk 0:00:20]} 39. Kh1 {[%clk 0:01:04]}  g4 {[%clk 0:00:10]} 40. Qc6 {[%clk 0:01:03]}  Re7 {[%clk 0:00:03]} 41. hxg4 {[%clk 0:00:45]}  Bxg4 {[%clk 0:00:03]} 42. Bxg3 {[%clk 0:00:41]}  Bxe2 {[%clk 0:00:03]} 43. Qc8+ {[%clk 0:00:39]}  Kg7 {[%clk 0:00:04]} 44. Re1 {[%clk 0:00:36]}  Bg4 {[%clk 0:00:03]} 45. Qb8 {[%clk 0:00:25]}  Rxe1+ {[%clk 0:00:03]} 46. Bxe1 {[%clk 0:00:26]}  Qd1 {[%clk 0:00:03]} 47. Qg3 {[%clk 0:00:25]}  Qe2 {[%clk 0:00:03]} 48. Bf2 {[%clk 0:00:21]}  h5 {[%clk 0:00:04]} 49. Kh2 {[%clk 0:00:21]}  Ng5 {[%clk 0:00:04]} 50. Kg1 {[%clk 0:00:17]}  Nf3+ {[%clk 0:00:05]} 51. Bxf3 {[%clk 0:00:17]}  Qxf3 {[%clk 0:00:06]} 52. Qxf3 {[%clk 0:00:18]}  Bxf3 {[%clk 0:00:07]} 53. Bxc5 {[%clk 0:00:19]}  Kf6 {[%clk 0:00:08]} 54. Bd4+ {[%clk 0:00:19]}  Ke6 {[%clk 0:00:08]} 55. Kf2 {[%clk 0:00:19]}  Kd7 {[%clk 0:00:08]} 56. Kxf3 {[%clk 0:00:19]}  Kc6 {[%clk 0:00:09]} 57. b4 {[%clk 0:00:19]}  h4 {[%clk 0:00:10]} 58. Kg4 {[%clk 0:00:20]}  Kb7 {[%clk 0:00:11]} 59. Kxh4 {[%clk 0:00:20]}  Ka6 {[%clk 0:00:12]} 60. Kg4 {[%clk 0:00:20]} 1-0


[Site "https://www.chess.com"]